bitfinex-derivatives/quotes_SOLF0:USTF0_20260312
["timestamp","ask_amount","ask_price","bid_price","bid_amount"]
[1773326577761,3.88608217,85.469,85.407,11.98713391]
[1773326578860,9.38994572,85.45,85.388,11.98713391]
[1773326579063,13.27461835,85.45,85.388,11.98713391]
[1773326579462,40.38,85.459,85.388,11.98713391]
[1773326579765,3.88467263,85.469,85.388,11.98713391]
[1773326581862,10.53,85.458,85.41,10.535]
[1773326583262,9.38994572,85.47,85.405,11.98713391]
[1773326583964,3.96597139,85.469,85.376,11.98713391]
[1773326584165,3.96597139,85.467,85.377,11.98713391]
[1773326584470,3.96597139,85.467,85.398,11.98713391]
[1773326585868,10.529,85.463,85.398,11.98713391]
[1773326586369,9.38994572,85.47,85.398,11.98713391]
[1773326586667,4.15074003,85.486,85.429,11.98713391]
[1773326587862,10.528,85.472,85.429,11.98713391]
[1773326588163,4.15074003,85.486,85.399,11.98713391]
[1773326588364,9.38994572,85.47,85.399,11.98713391]
[1773326588766,4.15074003,85.486,85.399,11.98713391]
[1773326589472,4.15074003,85.486,85.421,10.534]
[1773326589771,4.15074003,85.486,85.416,11.98713391]
[1773326589970,4.15074003,85.486,85.387,40.38]
[1773326589971,4.15074003,85.486,85.43,11.98713391]
[1773326590166,4.21540082,85.504,85.43,11.98713391]
[1773326590570,4.23178693,85.486,85.43,11.98713391]
[1773326591171,10.527,85.477,85.43,11.98713391]
[1773326591377,9.38994572,85.49,85.43,11.98713391]
[1773326591569,19.91594572,85.49,85.444,10.531]
[1773326591970,19.91594572,85.49,85.43,11.98713391]
[1773326591971,4.20821978,85.489,85.43,11.98713391]
[1773326592368,4.20821978,85.489,85.417,11.98713391]
[1773326592773,10.527,85.478,85.417,11.98713391]
[1773326593375,4.20821978,85.489,85.417,11.98713391]
[1773326593777,10.529,85.463,85.417,11.98713391]
[1773326594880,4.20821978,85.489,85.425,11.98713391]
[1773326596081,4.20821978,85.489,85.408,11.98713391]
[1773326596379,4.24959869,85.459,85.392,11.98713391]
[1773326596580,9.38994572,85.46,85.41,11.98713391]
[1773326597474,10.529,85.459,85.412,22.52213391]
[1773326597675,9.38994572,85.46,85.413,11.98713391]
[1773326598377,9.38994572,85.46,85.417,10.534]
[1773326598583,4.26491061,85.477,85.418,11.98713391]
[1773326598980,10.529,85.46,85.418,11.98713391]
[1773326599283,4.26491061,85.477,85.418,11.98713391]
[1773326599483,4.26491061,85.477,85.388,11.98713391]
[1773326599683,10.53,85.453,85.404,10.536]
[1773326599982,10.53,85.453,85.388,11.98713391]
[1773326600886,10.53,85.453,85.401,12.58146583]
[1773326601784,9.38994572,85.46,85.411,12.58146583]
[1773326603080,9.38994572,85.46,85.417,23.11546583]
[1773326603380,10.528,85.468,85.418,12.58146583]
[1773326603581,40.38,85.471,85.422,10.534]
[1773326603781,9.38994572,85.47,85.418,12.58146583]
[1773326604284,10.529,85.462,85.419,10.534]
[1773326604480,10.529,85.462,85.418,12.58146583]
[1773326604680,13.7269369,85.47,85.418,12.58146583]
[1773326604882,10.529,85.463,85.418,12.58146583]
[1773326605289,10.53,85.453,85.418,12.58146583]
[1773326605578,13.7269369,85.47,85.418,12.58146583]
[1773326605886,10.529,85.46,85.419,10.534]
[1773326607187,10.528,85.467,85.419,10.534]
[1773326607388,10.528,85.467,85.431,0.07399213]
[1773326608084,9.38994572,85.47,85.433,12.58146583]
[1773326608290,44.76007922,85.488,85.433,12.58146583]
[1773326608891,40.38,85.497,85.453,10.53]
[1773326609184,40.38,85.497,85.448,12.58146583]
[1773326609390,40.38,85.497,85.452,10.53]
[1773326610890,50.905,85.497,85.452,10.53]
[1773326611694,40.38,85.503,85.456,12.58146583]
[1773326612088,40.38,85.503,85.463,12.58146583]
[1773326613488,9.38994572,85.51,85.471,10.528]
[1773326613792,9.38994572,85.51,85.449,12.58146583]
[1773326613993,40.38,85.509,85.449,12.58146583]
[1773326614193,10.523,85.508,85.463,10.529]
[1773326614391,10.523,85.508,85.464,12.58146583]
[1773326614596,40.38,85.537,85.473,12.58146583]
[1773326614897,9.38994572,85.54,85.473,12.58146583]
[1773326615400,4.55224764,85.543,85.487,12.58146583]
[1773326615702,40.38,85.547,85.487,12.58146583]
[1773326616198,40.38,85.572,85.51,12.58146583]
[1773326616395,4.99302973,85.58,85.51,12.58146583]
[1773326616591,4.99302973,85.578,85.51,12.58146583]
[1773326617702,5.33778007,85.567,85.51,12.58146583]
[1773326617900,5.33778007,85.567,85.511,12.58146583]
[1773326618601,45.71778007,85.567,85.511,12.58146583]
[1773326619198,40.38,85.574,85.515,12.58146583]
[1773326620704,50.895,85.574,85.517,12.58146583]
[1773326621101,40.38,85.574,85.517,12.58146583]
[1773326621303,9.38994572,85.57,85.517,12.58146583]
[1773326621700,9.37024264,85.57,85.517,12.58146583]
[1773326623005,10.516,85.566,85.517,12.58146583]
[1773326623196,40.38,85.569,85.517,12.58146583]
[1773326623603,5.13227678,85.574,85.517,12.58146583]
[1773326623604,49.75024264,85.59,85.517,12.58146583]
[1773326623805,5.06754018,85.589,85.517,12.58146583]
[1773326624509,5.06754018,85.569,85.492,11.84291613]
[1773326625205,5.06754018,85.569,85.494,11.84291613]
[1773326625409,10.517,85.559,85.506,11.84291613]
[1773326625810,5.06754018,85.569,85.506,11.84291613]
[1773326626209,10.516,85.567,85.516,10.522]
[1773326626409,10.516,85.567,85.517,11.84291613]
[1773326626808,5.06754018,85.569,85.517,11.84291613]
[1773326627009,9.37024264,85.56,85.517,11.84291613]
[1773326627208,5.06754018,85.569,85.517,11.84291613]
[1773326627415,40.38,85.572,85.517,11.84291613]
[1773326629008,40.38,85.572,85.525,10.521]
[1773326629612,4.64925825,85.605,85.543,11.84291613]
[1773326629813,9.37024264,85.58,85.508,11.84291613]
[1773326630014,4.65956051,85.579,85.508,11.84291613]
[1773326630214,10.517,85.561,85.509,10.523]
[1773326630715,40.38,85.567,85.508,11.84291613]
[1773326630716,10.518,85.554,85.508,11.84291613]
[1773326631013,4.64303051,85.559,85.508,11.84291613]
[1773326631214,40.38,85.558,85.508,11.84291613]
[1773326631610,40.38,85.558,85.515,10.522]
[1773326631806,40.38,85.558,85.508,11.84291613]
[1773326632914,4.46674206,85.549,85.49,13.15598022]
[1773326633114,9.37024264,85.53,85.472,13.15598022]
[1773326633421,10.522,85.518,85.473,13.15598022]
[1773326634211,10.523,85.51,85.473,13.15598022]
[1773326634416,4.47656368,85.529,85.473,13.15598022]
[1773326635117,10.522,85.521,85.473,13.15598022]
[1773326636318,4.47656368,85.529,85.475,13.15598022]
[1773326636707,10.521,85.523,85.475,13.15598022]
[1773326637112,4.47656368,85.529,85.475,13.15598022]
[1773326637617,10.521,85.528,85.477,10.527]
[1773326638118,10.521,85.528,85.493,0.07371353]
[1773326638618,10.522,85.52,85.493,0.07371353]
[1773326639211,10.523,85.512,85.442,13.15598022]
[1773326639413,4.47656368,85.529,85.442,13.15598022]
[1773326639921,10.523,85.513,85.461,13.15598022]
[1773326640621,9.37024264,85.51,85.461,13.15598022]
[1773326640821,9.37024264,85.5,85.461,13.15598022]
[1773326641920,10.524,85.499,85.461,13.15598022]
[1773326642222,9.37024264,85.52,85.461,13.15598022]
[1773326642420,10.523,85.515,85.468,13.15598022]
[1773326642817,4.18529453,85.527,85.468,13.15598022]
[1773326643127,9.37024264,85.53,85.484,13.15598022]
[1773326643320,9.37024264,85.53,85.4,29.00662869]
[1773326643321,9.37024264,85.49,85.441,13.15598022]
[1773326643520,49.77024264,85.49,85.441,13.15598022]
[1773326644321,49.77024264,85.49,85.4,9.37024264]
[1773326644322,10.527,85.477,85.401,13.15598022]
[1773326645021,10.527,85.477,85.429,10.533]
[1773326645229,40.4,85.49,85.43,13.15598022]
[1773326646421,40.4,85.512,85.45,13.15598022]
[1773326646627,49.77024264,85.52,85.45,13.15598022]
[1773326646829,11.47729292,85.614,85.45,13.15598022]
[1773326646830,13.79666748,85.5,85.45,13.15598022]
[1773326647028,13.79666748,85.5,85.33,164.043]
[1773326647029,4.42642484,85.497,85.431,13.15598022]
[1773326647418,40.4,85.506,85.431,13.15598022]
[1773326647624,4.42642484,85.515,85.459,13.15598022]
[1773326649429,9.37024264,85.52,85.468,13.15598022]
[1773326649830,10.522,85.517,85.469,10.528]
[1773326650031,10.522,85.517,85.47,13.15598022]
[1773326650331,9.37024264,85.52,85.473,10.528]
[1773326650626,9.37024264,85.52,85.474,13.15598022]
[1773326650831,40.4,85.53,85.474,13.15598022]
[1773326651234,0.07375358,85.506,85.474,13.15598022]
[1773326651932,0.07375358,85.506,85.44,49.77024264]
[1773326651933,0.07375358,85.506,85.477,23.68298022]
[1773326652133,40.4,85.53,85.478,13.15598022]
[1773326652434,9.37024264,85.54,85.491,13.15598022]
[1773326653134,10.518,85.553,85.501,13.15598022]
[1773326654429,10.518,85.553,85.473,40.4]
[1773326654430,10.515,85.573,85.525,10.521]
[1773326654632,4.83388412,85.586,85.526,13.15598022]
[1773326654935,9.37024264,85.59,85.539,13.15598022]
[1773326655129,9.37024264,85.6,85.539,13.15598022]
[1773326655430,4.86888579,85.599,85.539,13.15598022]
[1773326656232,10.512,85.599,85.541,13.15598022]
[1773326656634,49.77024264,85.6,85.55,23.67398022]
[1773326656932,54.75197267,85.6,85.511,13.15598022]
[1773326657131,54.75197267,85.6,85.513,13.15598022]
[1773326657532,10.513,85.589,85.533,13.15598022]
[1773326657733,54.75197267,85.6,85.533,13.15598022]
[1773326657936,49.77024264,85.6,85.533,13.15598022]
[1773326658333,49.77024264,85.6,85.512,40.4]
[1773326658334,49.77024264,85.6,85.549,13.15598022]
[1773326659331,49.77024264,85.6,85.551,13.15598022]
[1773326660731,10.512,85.599,85.551,13.15598022]
[1773326661434,40.4,85.6,85.551,13.15598022]
[1773326662037,9.37024264,85.61,85.561,10.517]
[1773326662233,290.71161902,85.62,85.551,13.15598022]
[1773326662639,301.22061902,85.62,85.561,13.09346735]
[1773326662937,5.12475409,85.619,85.561,13.09346735]
[1773326663542,296.19749192,85.62,85.565,13.09346735]
[1773326664130,10.511,85.612,85.565,13.09346735]
[1773326664332,5.13192731,85.619,85.565,13.09346735]
[1773326666034,285.68749192,85.62,85.565,13.09346735]
[1773326666337,10.51,85.619,85.565,23.60946735]
[1773326667744,10.511,85.608,85.565,13.09346735]
[1773326668337,10.51,85.619,85.567,10.516]
[1773326668538,295.05773456,85.62,85.567,10.516]
[1773326669745,4.99096058,85.599,85.546,13.09346735]
[1773326669933,40.4,85.598,85.546,13.09346735]
[1773326670133,40.4,85.607,85.572,10.515]
[1773326670440,10.51,85.616,85.573,13.09346735]
[1773326670748,285.68749192,85.62,85.573,13.09346735]
[1773326671446,5.41042017,85.619,85.546,13.09346735]
[1773326672243,10.51,85.618,85.572,13.09346735]
[1773326672545,285.68749192,85.62,85.572,13.09346735]
[1773326672740,296.19749192,85.62,85.575,13.09346735]
[1773326673146,285.68749192,85.62,85.575,13.09346735]
[1773326674636,285.68749192,85.62,85.576,10.515]
[1773326675239,285.68749192,85.62,85.575,13.09346735]
[1773326676639,295.05773456,85.62,85.575,13.09346735]
[1773326677347,10.511,85.607,85.575,13.09346735]
[1773326677551,295.05773456,85.62,85.559,13.09346735]
[1773326677740,285.68749192,85.62,85.559,13.09346735]
[1773326678149,285.68749192,85.62,85.58,13.09346735]
[1773326678744,40.4,85.635,85.58,13.09346735]
[1773326678745,7.91796523,85.635,85.58,13.09346735]
[1773326679052,25.71552798,85.669,85.55,21.75497151]
[1773326679248,9.37024264,85.67,85.545,163.631]
[1773326679249,25.71552798,85.667,85.58,9.37024264]
[1773326679852,25.71552798,85.667,85.616,10.51]
[1773326680050,25.71552798,85.667,85.6,9.37024264]
[1773326680247,10.54332486,85.778,85.6,9.37024264]
[1773326680248,25.71634119,85.684,85.6,9.37024264]
[1773326680752,25.71634119,85.684,85.599,40.4]
[1773326681146,25.71634119,85.684,85.59,9.37024264]
[1773326681346,25.71634119,85.684,85.625,10.509]
[1773326681744,10.504,85.664,85.606,10.511]
[1773326681949,25.67948206,85.663,85.606,10.511]
[1773326682453,10.506,85.65,85.597,10.512]
[1773326682655,10.506,85.65,85.58,9.37024264]
[1773326683153,25.87001345,85.658,85.597,10.512]
[1773326683659,10.505,85.657,85.603,10.512]
[1773326683950,25.87001345,85.658,85.578,40.4]
[1773326685052,25.87001345,85.658,85.57,9.34920037]
[1773326685252,25.87001345,85.658,85.571,40.4]
[1773326685760,25.87001345,85.658,85.602,10.512]
[1773326685961,25.87001345,85.658,85.571,40.4]
[1773326686856,10.505,85.656,85.597,10.512]
[1773326687158,10.505,85.656,85.572,40.4]
[1773326687662,25.87001345,85.658,85.612,10.51]
[1773326688454,25.70365068,85.657,85.604,10.511]
[1773326689356,49.74920037,85.67,85.547,198.37860342]
[1773326689357,25.67969123,85.643,85.547,198.37860342]
[1773326689554,25.67969123,85.629,85.548,40.4]
[1773326689955,25.67969123,85.629,85.581,10.514]
[1773326691162,25.67969123,85.629,85.589,10.513]
[1773326691863,10.507,85.64,85.589,10.513]
[1773326692257,25.62107887,85.645,85.598,10.512]
[1773326692656,25.62107887,85.645,85.577,40.4]
[1773326693559,25.62107887,85.645,85.599,10.512]
[1773326693865,25.62107887,85.645,85.577,40.4]
[1773326694065,25.60463355,85.636,85.59,10.513]
[1773326694466,25.60463355,85.636,85.577,40.4]
[1773326694865,10.508,85.633,85.589,10.513]
[1773326695066,9.34920037,85.65,85.547,198.37860342]
[1773326695067,25.60118625,85.632,85.571,40.4]
[1773326695366,25.60118625,85.632,85.563,40.4]
[1773326695566,25.60118625,85.629,85.563,40.4]
[1773326695867,25.60161566,85.627,85.579,10.514]
[1773326696069,25.60161566,85.627,85.547,198.37860342]
[1773326696264,25.60161566,85.609,85.548,40.4]
[1773326696765,25.31898985,85.639,85.55,9.34920037]
[1773326697067,25.31898985,85.639,85.598,10.512]
[1773326697768,25.31898985,85.639,85.582,40.4]
[1773326698272,25.31898985,85.639,85.57,9.34920037]
[1773326698469,25.31898985,85.639,85.571,40.4]
[1773326698770,25.31898985,85.639,85.572,40.4]
[1773326698970,25.31898985,85.639,85.603,10.512]
[1773326699172,25.31898985,85.639,85.572,40.4]
[1773326699869,10.505,85.657,85.572,40.4]
[1773326700067,34.10431821,85.66,85.573,40.4]
[1773326700370,24.75511784,85.659,85.573,40.4]
[1773326700874,24.75615005,85.651,85.599,10.512]
[1773326701072,24.75615005,85.651,85.553,21.036]
[1773326701073,24.75615005,85.639,85.553,21.036]
[1773326701270,24.75615005,85.638,85.59,10.513]
[1773326701473,24.75615005,85.654,85.56,9.34920037]
[1773326701967,24.75615005,85.654,85.568,21.032]
[1773326702171,24.75615005,85.654,85.58,9.34920037]
[1773326702386,24.75615005,85.654,85.57,30.38120037]
[1773326702672,24.75615005,85.654,85.571,40.4]
[1773326703470,24.69494332,85.674,85.621,10.509]
[1773326703672,24.69494332,85.674,85.61,40.42]
[1773326703972,24.69386904,85.692,85.611,40.42]
[1773326704274,24.69386904,85.692,85.57,44.40920037]
[1773326704275,24.69386904,85.692,85.612,40.42]
[1773326704471,24.69386904,85.692,85.613,40.4]
[1773326704867,24.8199644,85.691,85.627,10.509]
[1773326705069,24.8199644,85.691,85.581,21.029]
[1773326705070,24.8199644,85.679,85.576,21.75497151]
[1773326705270,9.34920037,85.68,85.567,40.4]
[1773326705271,24.8199644,85.639,85.567,40.4]
[1773326705470,40.4,85.678,85.567,40.4]
[1773326705471,24.8199644,85.619,85.567,40.4]
[1773326705675,24.8199644,85.619,85.543,40.4]
[1773326706268,9.34920037,85.6,85.553,10.518]
[1773326706570,24.81911188,85.599,85.543,40.4]
[1773326706766,24.81911188,85.599,85.534,40.4]
[1773326706966,24.96268699,85.618,85.534,21.75497151]
[1773326707171,24.96268699,85.618,85.542,21.75497151]
[1773326707472,24.96268699,85.618,85.575,10.515]
[1773326707674,24.96268699,85.618,85.566,40.4]
[1773326707977,24.96268699,85.618,85.564,40.4]
[1773326708378,24.96268699,85.618,85.574,10.515]
[1773326708774,24.96268699,85.618,85.564,40.4]
[1773326708979,9.34920037,85.63,85.564,40.4]
[1773326708980,9.34920037,85.63,85.583,10.514]
[1773326709279,24.91326974,85.657,85.564,40.4]
[1773326709673,24.91326974,85.657,85.565,21.75497151]
[1773326710278,24.91326974,85.657,85.567,21.75497151]
[1773326710982,24.87541242,85.655,85.6,10.512]
[1773326711176,24.87541242,85.639,85.566,40.42]
[1773326711482,24.87541242,85.639,85.568,21.74564874]
[1773326711680,24.87541242,85.639,85.567,21.74564874]
[1773326711878,9.34920037,85.64,85.55,9.34920037]
[1773326711879,24.8747061,85.636,85.556,21.74564874]
[1773326712077,24.8747061,85.636,85.553,21.74564874]
[1773326712281,24.8747061,85.636,85.557,40.42]
[1773326712580,24.8747061,85.636,85.558,40.42]
[1773326712976,24.95171234,85.626,85.57,10.516]
[1773326713172,24.95171234,85.619,85.57,10.516]
[1773326713576,24.95171234,85.618,85.561,10.517]
[1773326713772,24.95171234,85.618,85.557,40.42]
[1773326714584,24.95171234,85.618,85.569,10.516]
[1773326715282,24.96170636,85.616,85.559,21.74564874]
[1773326715579,24.96170636,85.616,85.549,21.74564874]
[1773326715781,24.96170636,85.616,85.554,21.74564874]
[1773326716085,24.96157157,85.599,85.549,21.74564874]
[1773326716384,24.96157157,85.599,85.544,21.74564874]
[1773326716977,24.94497806,85.578,85.523,21.74564874]
[1773326717179,24.94497806,85.578,85.52,21.74564874]
[1773326717578,24.94497806,85.578,85.524,10.521]
[1773326717785,24.94497806,85.578,85.52,21.74564874]
[1773326717987,24.94484052,85.595,85.522,21.74564874]
[1773326718189,24.94484052,85.584,85.524,10.521]
[1773326718488,24.94484052,85.584,85.515,21.74564874]
[1773326719086,24.94484052,85.584,85.516,40.42]
[1773326719589,24.94484052,85.584,85.523,10.521]
[1773326719790,25.05103843,85.579,85.523,10.521]
[1773326720389,25.05103843,85.576,85.523,10.521]
[1773326720589,25.05103843,85.576,85.518,10.522]
[1773326720782,25.04637084,85.563,85.516,40.42]
[1773326721391,25.04637084,85.559,85.498,21.74564874]
[1773326721582,25.04637084,85.559,85.496,40.42]
[1773326721782,25.04637084,85.559,85.498,21.74564874]
[1773326721982,25.04637084,85.559,85.499,40.42]
[1773326722686,25.05241471,85.595,85.5,21.74564874]
[1773326722885,25.05241471,85.595,85.512,21.74564874]
[1773326723186,25.05241471,85.595,85.518,21.74564874]
[1773326723386,25.05241471,85.595,85.53,9.34920037]
[1773326723589,25.05241471,85.618,85.534,21.74564874]
[1773326723786,25.05241471,85.618,85.531,40.42]
[1773326723787,10.511,85.612,85.557,10.517]
[1773326723993,25.05232133,85.611,85.557,10.517]
[1773326724192,25.05232133,85.611,85.536,21.74564874]
[1773326724691,25.05232133,85.611,85.537,40.42]
[1773326725988,25.06211902,85.607,85.537,40.42]
[1773326726189,25.06211902,85.607,85.538,21.74564874]
[1773326726993,25.08709916,85.628,85.55,9.34920037]
[1773326727191,25.08709916,85.628,85.588,10.513]
[1773326727395,25.08709916,85.628,85.538,21.04]
[1773326727396,40.42,85.645,85.583,40.42]
[1773326727587,25.08709916,85.644,85.584,40.42]
[1773326728190,25.08709916,85.644,85.587,10.513]
[1773326729998,25.08709916,85.644,85.58,40.42]
[1773326729999,25.12071222,85.639,85.58,40.42]
[1773326730497,25.12071222,85.636,85.58,40.42]
[1773326731190,25.15405814,85.628,85.58,40.42]
[1773326731495,40.42,85.652,85.51,30.39520037]
[1773326731496,25.15405814,85.626,85.547,40.42]
[1773326731694,25.15405814,85.624,85.547,40.42]
[1773326732596,25.15400063,85.62,85.564,10.516]
[1773326733897,25.13633181,85.617,85.564,10.516]
[1773326734093,25.13633181,85.617,85.555,10.517]
[1773326734898,10.511,85.608,85.555,10.517]
[1773326735099,25.11108395,85.607,85.555,10.517]
[1773326736200,25.11108395,85.607,85.562,10.517]
[1773326736893,25.11108395,85.607,85.553,40.42]
[1773326736894,25.11108395,85.607,85.554,10.518]
[1773326738193,25.11108395,85.607,85.565,10.516]
[1773326739100,25.11108395,85.607,85.557,10.517]
[1773326740304,25.11108395,85.607,85.553,40.42]
[1773326740602,25.06954116,85.6,85.533,21.74564874]
[1773326740797,25.06954116,85.6,85.545,10.519]
[1773326741809,25.10232447,85.598,85.543,40.42]
[1773326742101,25.10232447,85.598,85.544,40.42]
[1773326742303,25.10232447,85.598,85.56,10.517]
[1773326742604,25.10232447,85.616,85.553,21.74564874]
[1773326742804,25.10232447,85.616,85.554,62.16564874]
[1773326743098,25.10232447,85.616,85.579,10.514]
[1773326743300,25.09295317,85.634,85.57,9.34920037]
[1773326743504,25.09295317,85.634,85.574,21.74564874]
[1773326743702,25.09295317,85.634,85.573,21.74564874]
[1773326744097,25.09295317,85.634,85.593,10.513]
[1773326744497,25.09295317,85.634,85.561,21.74564874]
[1773326744693,25.15341669,85.607,85.548,40.42]
[1773326745599,25.15341669,85.607,85.554,10.518]
[1773326746199,25.15336594,85.604,85.554,10.518]
[1773326746904,25.15336594,85.604,85.562,10.517]
[1773326747703,25.15336594,85.604,85.546,40.42]
[1773326748206,25.1486707,85.621,85.55,21.74564874]
[1773326748405,25.1486707,85.621,85.546,40.42]
[1773326748600,25.1486707,85.599,85.546,40.42]
[1773326749009,25.1486707,85.599,85.556,10.517]
[1773326749199,25.1486707,85.599,85.546,40.42]
[1773326750510,25.1486707,85.599,85.554,10.517]
[1773326751012,35.60935784,85.598,85.554,10.517]
[1773326751611,25.09735784,85.595,85.546,50.939]
[1773326752306,25.09730139,85.589,85.527,21.74564874]
[1773326752511,25.09730139,85.589,85.532,21.74564874]
[1773326752906,25.09030186,85.578,85.528,10.521]
[1773326753606,14.21747749,85.539,85.475,0.50671364]
[1773326754113,14.21747749,85.539,85.498,10.524]
[1773326754505,13.91779037,85.556,85.498,10.524]
[1773326755206,13.91779037,85.556,85.508,10.523]
[1773326756308,13.91779037,85.554,85.493,14.17307824]
[1773326757006,10.518,85.55,85.494,10.525]
[1773326758510,24.43579037,85.55,85.494,10.525]
[1773326759311,24.43579037,85.55,85.494,24.69807824]
[1773326760114,13.91779037,85.549,85.494,24.69807824]
[1773326760518,13.91779037,85.546,85.483,10.526]
[1773326760809,9.35043881,85.56,85.477,14.17307824]
[1773326761014,13.91779037,85.563,85.493,14.17307824]
[1773326761413,13.91779037,85.589,85.501,14.17307824]
[1773326761620,163.41,85.661,85.476,163.762]
[1773326761621,13.91779037,85.609,85.531,14.17307824]
[1773326761822,13.91779037,85.589,85.515,14.17307824]
[1773326762022,13.91779037,85.589,85.498,14.17307824]
[1773326762222,9.35043881,85.61,85.501,14.17307824]
[1773326762223,13.91779037,85.595,85.501,14.17307824]
[1773326762421,13.91779037,85.595,85.521,14.17307824]
[1773326762622,13.91779037,85.614,85.541,14.17307824]
[1773326762922,13.91779037,85.614,85.543,14.17307824]
[1773326763124,13.91779037,85.614,85.561,10.517]
[1773326763324,13.91779037,85.614,85.544,14.17307824]
[1773326763525,13.91779037,85.614,85.575,10.515]
[1773326763824,13.91779037,85.614,85.544,14.17307824]
[1773326764028,13.91779037,85.609,85.544,14.17307824]
[1773326764220,13.91779037,85.605,85.525,14.17307824]
[1773326764624,13.91779037,85.576,85.517,10.522]
[1773326764820,13.91779037,85.576,85.508,14.17307824]
[1773326765522,54.33779037,85.592,85.508,14.17307824]
[1773326765827,24.43079037,85.59,85.533,10.52]
[1773326766124,13.91779037,85.589,85.526,14.17307824]
[1773326766329,172.72443881,85.68,85.509,40.42]
[1773326766330,13.91779037,85.627,85.54,9.35043881]
[1773326766521,13.91779037,85.627,85.518,163.682]
[1773326766522,13.91779037,85.627,85.541,14.17307824]
[1773326766923,13.91779037,85.648,85.571,14.17307824]
[1773326767221,9.35043881,85.66,85.571,14.17307824]
[1773326767222,13.91779037,85.659,85.572,14.17307824]
[1773326767425,13.91779037,85.659,85.552,14.17307824]
[1773326767629,13.91779037,85.664,85.554,14.17307824]
[1773326767921,13.91779037,85.693,85.591,14.17307824]
[1773326768117,13.91779037,85.693,85.542,163.637]
[1773326768118,13.91779037,85.659,85.569,14.17307824]
[1773326768315,9.35043881,85.62,85.521,14.17307824]
[1773326768521,13.91779037,85.599,85.521,14.17307824]
[1773326768719,8.47054401,85.656,85.521,14.17307824]
[1773326768720,13.91779037,85.619,85.521,14.17307824]
[1773326768919,13.91779037,85.619,85.554,10.518]
[1773326769128,13.91779037,85.619,85.544,14.17307824]
[1773326769530,13.91779037,85.599,85.514,14.17307824]
[1773326769726,13.91779037,85.599,85.525,14.17307824]
[1773326770131,13.91779037,85.579,85.506,14.17307824]
[1773326770329,13.91779037,85.568,85.507,10.523]
[1773326770531,13.91779037,85.559,85.481,14.17307824]
[1773326770828,13.91779037,85.586,85.502,14.17307824]
[1773326771533,13.91779037,85.604,85.52,14.17307824]
[1773326771827,13.91779037,85.589,85.52,14.17307824]
[1773326773028,13.91779037,85.577,85.52,14.17307824]
[1773326773421,24.43279037,85.577,85.52,24.69507824]
[1773326774027,24.43279037,85.577,85.52,14.17307824]
[1773326774328,13.91779037,85.577,85.52,14.17307824]
[1773326775234,24.43279037,85.577,85.52,14.17307824]
[1773326775433,13.91779037,85.576,85.52,14.17307824]
[1773326775628,13.91779037,85.595,85.523,14.17307824]
[1773326775834,9.35043881,85.62,85.531,14.17307824]
[1773326776032,13.91779037,85.63,85.531,14.17307824]
[1773326776331,13.91779037,85.619,85.546,10.519]
[1773326776530,13.91779037,85.619,85.531,14.17307824]
[1773326777427,13.91779037,85.619,85.533,14.17307824]
[1773326777632,13.91779037,85.599,85.532,40.42]
[1773326777929,13.91779037,85.623,85.541,14.17307824]
[1773326778129,24.42679037,85.623,85.561,14.17307824]
[1773326778329,13.91779037,85.623,85.561,14.17307824]
[1773326778933,13.91779037,85.639,85.561,14.17307824]
[1773326779131,40.42,85.659,85.561,14.17307824]
[1773326779132,13.91779037,85.658,85.561,14.17307824]
[1773326779429,13.91779037,85.679,85.607,14.17307824]
[1773326779828,40.42,85.706,85.598,40.42]
[1773326779829,13.91779037,85.669,85.598,40.42]
[1773326780133,13.91779037,85.649,85.581,14.17307824]
[1773326780324,14.55918883,85.671,85.581,14.17307824]
[1773326780526,10.504,85.665,85.601,14.6024675]
[1773326780927,14.55918883,85.671,85.601,14.6024675]
[1773326781129,14.55918883,85.658,85.582,40.42]
[1773326781329,14.55918883,85.658,85.58,14.6024675]
[1773326781524,14.55918883,85.658,85.521,163.676]
[1773326781525,14.55918883,85.639,85.561,14.6024675]
[1773326781726,10.509,85.622,85.561,14.6024675]
[1773326781932,14.55918883,85.621,85.561,14.6024675]
[1773326782127,14.55918883,85.649,85.561,14.6024675]
[1773326782638,14.55918883,85.667,85.573,14.6024675]